fUST/lending_fUST_20260106
["ID","MTS","AMOUNT","RATE_DAILY","PERIOD"]
[400488294,1767658242898,-500.0,0.00013699,2]
[400488295,1767658242907,-500.0,0.00013699,2]
[400488296,1767658242916,-500.0,0.00013699,2]
[400488297,1767658242925,-501.40152604,0.00013699,2]
[400488298,1767658242935,-587.68727556,0.00013699,2]
[400488299,1767658242944,-600.61863753,0.00013699,2]
[400488300,1767658242954,-501.17940112,0.00013699,2]
[400488301,1767658242963,-500.79162924,0.00013699,2]
[400488302,1767658242972,-500.0,0.00013699,2]
[400488303,1767658242982,-500.0,0.00013699,2]
[400488304,1767658242992,-500.0,0.00013699,2]
[400488305,1767658243002,-500.0,0.00013699,2]
[400488306,1767658243012,-500.95231003,0.00013699,2]
[400488307,1767658243021,-500.0,0.00013699,2]
[400488308,1767658243030,-243.03449351,0.00013699,2]
[400488309,1767658243040,-500.0,0.00013699,2]
[400488310,1767658243050,-500.0,0.00013699,2]
[400488311,1767658243059,-500.0,0.00013699,2]
[400488312,1767658243068,-346.68143655,0.00013699,2]
[400488313,1767658243078,-500.0,0.00013699,2]
[400488314,1767658243089,-160.25706,0.00013699,2]
[400488315,1767658243099,-501.09217932,0.00013699,2]
[400488316,1767658243108,-500.0,0.00013699,2]
[400488317,1767658243119,-500.65853193,0.00013699,2]
[400488318,1767658243128,-501.22888197,0.00013699,2]
[400488319,1767658243138,-500.0,0.00013699,2]
[400488320,1767658243147,-500.0,0.00013699,2]
[400488322,1767658243157,-500.89247441,0.00013699,2]
[400488323,1767658243166,-500.0,0.00013699,2]
[400488325,1767658243175,-500.0,0.00013699,2]
[400488326,1767658243184,-304.13145531,0.00013699,2]
[400488327,1767658243194,-500.0,0.00013699,2]
[400488328,1767658243203,-500.0,0.00013699,2]
[400488329,1767658243213,-500.0,0.00013699,2]
[400488330,1767658243223,-165.14399286,0.00013699,2]
[400488331,1767658243232,-501.02479186,0.00013699,2]
[400488332,1767658243243,-417.0295786,0.00013699,2]
[400488333,1767658243252,-500.0,0.00013699,2]
[400488334,1767658243263,-500.0,0.00013699,2]
[400488335,1767658243273,-500.0,0.00013699,2]
[400488336,1767658243282,-500.0,0.00013699,2]
[400488337,1767658243291,-163.76494806,0.00013699,2]
[400488338,1767658243301,-500.0,0.00013699,2]
[400488339,1767658243311,-535.14854462,0.00013699,2]
[400488340,1767658243320,-500.0,0.00013699,2]
[400488341,1767658243330,-500.0,0.00013699,2]
[400488342,1767658243340,-500.0,0.00013699,2]
[400488343,1767658243349,-500.0,0.00013699,2]
[400488344,1767658243358,-500.0,0.00013699,2]
[400488345,1767658243368,-500.0,0.00013699,2]
[400488346,1767658243378,-500.0,0.00013699,2]
[400488347,1767658243387,-500.0,0.00013699,2]
[400488348,1767658243397,-500.0,0.00013699,2]
[400488349,1767658243407,-500.0,0.00013699,2]
[400488350,1767658243420,-340.3046405,0.00013699,2]
[400488351,1767658243431,-500.0,0.00013699,2]
[400488352,1767658243441,-500.0,0.00013699,2]
[400488353,1767658243452,-500.0,0.00013699,2]
[400488354,1767658243462,-500.0,0.00013699,2]
[400488355,1767658243471,-500.0,0.00013699,2]
[400488356,1767658243480,-500.0,0.00013699,2]
[400488357,1767658243491,-525.09308339,0.00013699,2]
[400488358,1767658243501,-500.73584344,0.00013699,2]
[400488359,1767658243511,-500.0,0.00013699,2]
[400488360,1767658243520,-500.0,0.00013699,2]
[400488361,1767658243530,-500.55744164,0.00013699,2]
[400488362,1767658243539,-500.0,0.00013699,2]
[400488363,1767658243550,-500.0,0.00013699,2]
[400488364,1767658243559,-500.0,0.00013699,2]
[400488365,1767658243569,-500.71305262,0.00013699,2]
[400488366,1767658243578,-500.0,0.00013699,2]
[400488367,1767658243587,-500.0,0.00013699,2]
[400488368,1767658243597,-500.0,0.00013699,2]
[400488369,1767658243606,-500.0,0.00013699,2]
[400488370,1767658243614,-500.0,0.00013699,2]
[400488371,1767658243623,-500.0,0.00013699,2]
[400488372,1767658243632,-500.0,0.00013699,2]
[400488373,1767658243642,-500.74240943,0.00013699,2]
[400488374,1767658243651,-500.0,0.00013699,2]
[400488375,1767658243661,-500.0,0.00013699,2]
[400488376,1767658243670,-500.0,0.00013699,2]
[400488377,1767658243679,-500.0867866,0.00013699,2]
[400488378,1767658243688,-500.0,0.00013699,2]
[400488379,1767658243697,-168.0,0.00013704,2]
[400488380,1767658243707,-4186.30479046,0.00013776,2]
[400488381,1767658243715,-199.0,0.00013789,2]
[400488382,1767658243724,-1000.0,0.00013821,2]
[400488383,1767658243733,-1000.0,0.00013821,2]
[400488384,1767658243742,-1000.0,0.00013821,2]
[400488385,1767658243751,-1000.0,0.00013821,2]
[400488386,1767658243760,-1000.0,0.00013821,2]
[400488387,1767658243769,-1000.0,0.00013821,2]
[400488388,1767658243778,-1000.0,0.00013821,2]
[400488389,1767658243787,-1000.0,0.00013821,2]
[400488390,1767658243797,-1000.0,0.00013821,2]
[400488391,1767658243806,-1000.0,0.00013821,2]
[400488392,1767658243816,-777.47286237,0.00013821,2]
[400488393,1767658243826,-1000.0,0.00013821,2]
[400488394,1767658243835,-1000.0,0.00013821,2]
[400488395,1767658243844,-1000.0,0.00013821,2]
[400488396,1767658243853,-1000.0,0.00013821,2]
[400488397,1767658243862,-752.44576455,0.00013821,2]
[400488398,1767658243872,-1000.0,0.00013821,2]
[400488399,1767658243882,-1000.0,0.00013821,2]
[400488400,1767658243890,-196.20087533,0.00013821,2]
[400488401,1767658243899,-1000.0,0.00013821,2]
[400488402,1767658243907,-1000.0,0.00013821,2]
[400488403,1767658243917,-1000.0,0.00013821,2]
[400488404,1767658243926,-1000.0,0.00013821,2]
[400488405,1767658243935,-1000.0,0.00013821,2]
[400488406,1767658243944,-1000.0,0.00013821,2]
[400488407,1767658243954,-1000.0,0.00013821,2]
[400488408,1767658243963,-1000.0,0.00013821,2]
[400488409,1767658243972,-1000.0,0.00013821,2]
[400488410,1767658243982,-1000.0,0.00013821,2]
[400488411,1767658243991,-1000.0,0.00013821,2]
[400488412,1767658244001,-1000.0,0.00013821,2]
[400488413,1767658244010,-1000.0,0.00013821,2]
[400488414,1767658244019,-843.66799966,0.00013821,2]
[400488415,1767658244028,-5000.0,0.0001386,2]
[400488416,1767658244037,-1000.0,0.00013887,2]
[400488417,1767658244046,-244.0,0.00013887,2]
[400488418,1767658244055,-199.0,0.0001392,2]
[400488419,1767658244064,-199.0,0.00013931,2]
[400488420,1767658244074,-199.0,0.00013946,2]
[400488421,1767658244083,-600.0,0.00014,2]
[400488422,1767658244102,-713.27,0.00014,2]
[400488423,1767658244112,-160.0,0.00014075,3]
[400488424,1767658244122,-7008.45623522,0.00014133,2]
[400488425,1767658244131,-600.0,0.00014221,2]
[400488426,1767658244140,-200.0,0.00014246,2]
[400488427,1767658244150,-200.0,0.00014246,2]
[400488428,1767658244159,-1000.0,0.00014247,2]
[400488429,1767658244168,-1000.0,0.00014247,2]
[400488430,1767658244178,-1000.0,0.00014247,2]
[400488431,1767658244187,-1000.0,0.00014247,2]
[400488432,1767658244197,-1110.99561732,0.00014247,2]
[400488434,1767658244206,-1000.0,0.00014247,2]
[400488435,1767658244216,-252.3369474,0.00014247,2]
[400488436,1767658244226,-1000.0,0.00014247,2]
[400488437,1767658244236,-1000.0,0.00014247,2]
[400488438,1767658244246,-1000.0,0.00014247,2]
[400488439,1767658244254,-1000.74954196,0.00014247,2]
[400488440,1767658244263,-503.48130283,0.00014247,2]
[400488441,1767658244274,-1000.0,0.00014247,2]
[400488442,1767658244283,-298.19005658,0.00014247,2]
[400488443,1767658244294,-609.90250853,0.00014247,2]
[400488444,1767658244307,-396.66942136,0.00014247,2]
[400488445,1767658244318,-1000.0,0.00014247,2]
[400488446,1767658244328,-1000.0,0.00014247,2]
[400488447,1767658244338,-1000.0,0.00014247,2]
[400488448,1767658244348,-1000.0,0.00014247,2]
[400488450,1767658244359,-1000.0,0.00014247,2]
[400488451,1767658244368,-1000.0,0.00014247,2]
[400488452,1767658244378,-157.83137815,0.00014247,2]
[400488453,1767658244388,-689.55355886,0.00014247,2]
[400488457,1767658244553,-250.0,0.00014247,2]
[400488458,1767658244567,-1000.0,0.00014247,2]
[400488459,1767658244578,-1077.06068601,0.00014247,2]
[400488460,1767658244588,-1000.0,0.00014247,2]
[400488461,1767658244597,-301.3335072,0.00014247,2]
[400488462,1767658244607,-169.3533725,0.00014247,2]
[400488463,1767658244616,-1000.0,0.00014247,2]
[400488464,1767658244625,-251.58373916,0.00014247,2]
[400488465,1767658244635,-1000.0,0.00014247,2]
[400488466,1767658244644,-1000.0,0.00014247,2]
[400488467,1767658244653,-1000.0,0.00014247,2]
[400488468,1767658244662,-1000.0,0.00014247,2]
[400488469,1767658244671,-1000.0,0.00014247,2]
[400488470,1767658244681,-1000.0,0.00014247,2]
[400488471,1767658244691,-443.0912917,0.00014247,2]
[400488472,1767658244700,-1000.0,0.00014247,2]
[400488473,1767658244709,-1000.0,0.00014247,2]
[400488474,1767658244718,-1000.0,0.00014247,2]
[400488475,1767658244727,-1000.0,0.00014247,2]
[400488476,1767658244737,-500.7533204,0.00014247,2]
[400488477,1767658244746,-1106.47999173,0.00014247,2]
[400488478,1767658244755,-500.49764939,0.00014247,2]
[400488479,1767658244767,-441.27132624,0.00014247,2]
[400488480,1767658244778,-1000.0,0.00014247,2]
[400488481,1767658244787,-502.4686289,0.00014247,2]
[400488482,1767658244796,-1000.79513169,0.00014247,2]
[400488483,1767658244806,-501.09544141,0.00014247,2]
[400488484,1767658244815,-1000.0,0.00014247,2]
[400488485,1767658244824,-1000.0,0.00014247,2]
[400488486,1767658244834,-1000.0,0.00014247,2]
[400488487,1767658244844,-1000.0,0.00014247,2]
[400488488,1767658244853,-310.09338891,0.00014247,2]
[400488489,1767658244863,-228.11193972,0.00014247,2]
[400488490,1767658244872,-1000.0,0.00014247,2]
[400488491,1767658244882,-501.78864113,0.00014247,2]
[400488492,1767658244892,-1103.8069965,0.00014247,2]
[400488493,1767658244901,-1000.0,0.00014247,2]
[400488494,1767658244911,-1000.0,0.00014247,2]
[400488495,1767658244920,-1000.0,0.00014247,2]
[400488496,1767658244929,-1500.0,0.00014368,2]
[400488497,1767658244938,-519.21125706,0.00014368,2]
[400488498,1767658244947,-1221.19075895,0.00014368,2]
[400488499,1767658244956,-465.35115233,0.00014368,2]
[400488500,1767658244965,-1500.0,0.00014368,2]
[400488501,1767658244974,-1500.0,0.00014368,2]
[400488502,1767658244983,-1240.27229345,0.00014368,2]
[400488503,1767658244991,-739.44180951,0.00014368,2]
[400488504,1767658245001,-1500.0,0.00014368,2]
[400488505,1767658245011,-1001.65484874,0.00014368,2]
[400488506,1767658245020,-1500.0,0.00014368,2]
[400488507,1767658245030,-1500.0,0.00014368,2]
[400488508,1767658245039,-1500.0,0.00014368,2]
[400488509,1767658245048,-283.56725254,0.00014368,2]
[400488510,1767658245057,-1500.0,0.00014368,2]
[400488511,1767658245066,-1500.0,0.00014368,2]
[400488512,1767658245075,-1500.0,0.00014368,2]
[400488513,1767658245085,-712.0093833,0.00014368,2]
[400488514,1767658245094,-1500.0,0.00014368,2]
[400488515,1767658245103,-1500.0,0.00014368,2]
[400488516,1767658245112,-720.55709982,0.00014368,2]
[400488517,1767658245122,-1500.0,0.00014368,2]
[400488518,1767658245131,-1500.0,0.00014368,2]
[400488519,1767658245140,-1500.0,0.00014368,2]
[400488520,1767658245150,-1500.0,0.00014368,2]
[400488521,1767658245159,-1500.0,0.00014368,2]
[400488522,1767658245168,-1500.0,0.00014368,2]
[400488523,1767658245178,-1500.0,0.00014368,2]
[400488524,1767658245187,-160.0,0.0001437,4]
[400488525,1767658245196,-713.27,0.000144,2]
[400488526,1767658245206,-764.62986514,0.00014515,11]
[400488527,1767658245216,-160.0,0.00014665,5]
[400488528,1767658245225,-13102.85628907,0.00014736,2]
[400488529,1767658245235,-900.0,0.00014768,2]
[400488530,1767658245244,-500.0,0.00014794,2]
[400488531,1767658245253,-502.31355974,0.00014795,2]
[400488532,1767658245263,-652.47965923,0.00014795,2]
[400488533,1767658245272,-1500.0,0.00014795,2]
[400488534,1767658245281,-1138.59497306,0.00014795,2]
[400488535,1767658245290,-524.36073826,0.00014795,2]
[400488536,1767658245298,-1601.30603512,0.00014795,2]
[400488537,1767658245307,-1500.0,0.00014795,2]
[400488538,1767658245317,-1500.0,0.00014795,2]
[400488539,1767658245327,-1500.0,0.00014795,2]
[400488540,1767658245337,-1500.0,0.00014795,2]
[400488541,1767658245347,-1500.0,0.00014795,2]
[400488542,1767658245356,-1500.0,0.00014795,2]
[400488543,1767658245365,-1500.0,0.00014795,2]
[400488544,1767658245375,-350.0,0.00014795,2]
[400488545,1767658245384,-972.65413406,0.00014795,2]
[400488546,1767658245393,-1503.30612598,0.00014795,2]
[400488547,1767658245403,-1500.0,0.00014795,2]
[400488548,1767658245414,-785.18972345,0.00014795,2]
[400488549,1767658245423,-373.28262423,0.00014795,2]
[400488550,1767658245434,-1001.26577405,0.00014795,2]
[400488551,1767658245443,-1500.0,0.00014795,2]
[400488552,1767658245454,-481.40904469,0.00014795,2]
[400488554,1767658245463,-1500.0,0.00014795,2]
[400488555,1767658245472,-698.25926734,0.00014795,2]
[400488556,1767658245483,-1502.48975401,0.00014795,2]
[400488557,1767658245492,-1500.0,0.00014795,2]
[400488558,1767658245501,-505.16333273,0.00014795,2]
[400488560,1767658245510,-698.34157968,0.00014795,2]
[400488561,1767658245519,-1500.0,0.00014795,2]
[400488562,1767658245532,-1503.66578313,0.00014795,2]
[400488563,1767658245542,-1500.0,0.00014795,2]
[400488564,1767658245551,-1500.0,0.00014795,2]
[400488565,1767658245563,-1500.0,0.00014795,2]
[400488566,1767658245572,-1500.0,0.00014795,2]
[400488567,1767658245582,-713.27,0.000148,2]
[400488568,1767658245591,-216.18031674,0.00014916,2]
[400488569,1767658245600,-1010.54164352,0.00014916,2]
[400488570,1767658245610,-1000.0,0.00014916,2]
[400488571,1767658245619,-2000.0,0.00014916,2]
[400488572,1767658245630,-2000.0,0.00014916,2]
[400488573,1767658245639,-500.0,0.00014916,2]
[400488574,1767658245648,-2000.0,0.00014916,2]
[400488575,1767658245658,-1107.59034005,0.00014916,2]
[400488576,1767658245667,-1523.49454,0.00014916,2]
[400488577,1767658245675,-2000.0,0.00014916,2]
[400488578,1767658245685,-2000.0,0.00014916,2]
[400488579,1767658245695,-754.02216998,0.00014916,2]
[400488580,1767658245705,-546.43691011,0.00014916,2]
[400488581,1767658245714,-1506.20046676,0.00014916,2]
[400488582,1767658245723,-2000.0,0.00014916,2]
[400488583,1767658245733,-2000.0,0.00014916,2]
[400488584,1767658245743,-2000.0,0.00014916,2]
[400488585,1767658245752,-11513.45164254,0.00014927,2]
[400488586,1767658245761,-160.0,0.0001496,6]
[400488587,1767658245771,-1155.7324043,0.00015,2]
[400488588,1767658245780,-1000.0,0.00015,2]
[400488589,1767658245789,-1000.0,0.00015,7]
[400488590,1767658245799,-1000.0,0.00015,2]
[400488591,1767658245808,-205.48068196,0.00015009,2]
[400488592,1767658245818,-116230.75506766,0.0001501,2]
[400488593,1767658245944,-605.18102124,0.0001501,2]
[400488594,1767658246212,-3e-08,0.0001501,2]
[400488603,1767658246804,-844.84180206,0.0001501,2]
[400488606,1767658288724,200.0,0.0003,120]
[400488608,1767658310907,233.0,0.0003,120]
[400488612,1767658347153,500.01,0.0003,120]
[400488614,1767658418748,558.56,0.00030137,120]
[400488635,1767658862855,500.0,0.00030136,120]
[400488636,1767658863123,500.0,0.00030136,120]
[400488637,1767658863368,500.0,0.00030136,120]
[400488638,1767658863616,500.0,0.00030136,120]
[400488639,1767658863843,500.0,0.00030136,120]
[400488640,1767658864086,500.0,0.00030136,120]
[400488641,1767658864416,500.0,0.00030136,120]
[400488642,1767658864661,500.0,0.00030136,120]
[400488643,1767658864898,500.0,0.00030136,120]
[400488644,1767658865134,499.0000001,0.00030136,120]
[400488646,1767659040674,365.0,9.274e-05,2]
[400488647,1767659082914,201.0,0.00030137,120]
[400488654,1767659281856,632.4,0.00030137,120]
[400488660,1767659393843,155.05,9.117e-05,2]
[400488689,1767659431738,-550.0,9.3e-05,2]
[400488691,1767659431749,-513.56,9.3e-05,2]
[400488693,1767659431762,-329.53753042,9.306e-05,2]
[400488695,1767659431772,-193.81,9.497e-05,2]
[400488697,1767659431782,-513.56,9.7e-05,2]
[400488699,1767659431793,-232.58,9.877e-05,2]
[400488701,1767659431802,-300.0,0.00010024,2]
[400488703,1767659431812,-1200.0,0.00010025,2]
[400488705,1767659431823,-1200.0,0.00010025,2]
[400488707,1767659431832,-1139.67789123,0.00010026,2]
[400488709,1767659431842,-7721.15164583,0.00010026,2]
[400488711,1767659431851,-513.56,0.000101,2]
[400488713,1767659431860,-271.34,0.00010257,2]
[400488715,1767659431870,-614.00374773,0.0001047,2]
[400488717,1767659431881,-187.7624438,0.0001047,2]
[400488719,1767659431890,-500.0,0.0001047,2]
[400488721,1767659431900,-500.0,0.0001047,2]
[400488723,1767659431909,-500.0,0.0001047,2]
[400488724,1767659431918,-500.0,0.0001047,2]
[400488726,1767659431928,-329.3902901,0.0001047,2]
[400488728,1767659431937,-500.0,0.0001047,2]
[400488730,1767659431946,-500.0,0.0001047,2]
[400488731,1767659431955,-500.0,0.0001047,2]
[400488733,1767659431965,-500.0,0.0001047,2]
[400488735,1767659431975,-500.0,0.0001047,2]
[400488737,1767659431984,-500.0,0.0001047,2]
[400488739,1767659431993,-500.0,0.0001047,2]
[400488741,1767659432002,-500.0,0.0001047,2]
[400488743,1767659432011,-500.0,0.0001047,2]
[400488745,1767659432020,-500.0,0.0001047,2]
[400488746,1767659432029,-566.63076376,0.0001047,2]
[400488748,1767659432038,-350.09171307,0.0001047,2]
[400488750,1767659432047,-199.72072116,0.0001047,2]
[400488752,1767659432056,-151.0,0.00010567,2]
[400488754,1767659432065,-151.0,0.00010567,2]
[400488755,1767659432075,-151.0,0.00010567,2]
[400488757,1767659432084,-301.7877781,0.00010567,2]
[400488759,1767659432093,-245.339,0.00010571,2]
[400488761,1767659432102,-183.62270644,0.00010571,2]
[400488763,1767659432111,-500.0,0.00010574,2]
[400488765,1767659432120,-513.56,0.000106,2]
[400488766,1767659432131,-310.1,0.00010637,2]
[400488768,1767659432140,-300.0,0.00010684,2]
[400488770,1767659432149,-300.0,0.00010684,2]
[400488772,1767659432158,-300.0,0.00010684,2]
[400488774,1767659432167,-300.0,0.00010684,2]
[400488776,1767659432177,-300.0,0.00010684,2]
[400488778,1767659432187,-300.0,0.00010684,2]
[400488780,1767659432197,-300.0,0.00010684,2]
[400488782,1767659432206,-300.0,0.00010684,2]
[400488784,1767659432215,-300.0,0.00010684,2]
[400488786,1767659432227,-300.0,0.00010684,2]
[400488787,1767659432236,-300.0,0.00010684,2]
[400488789,1767659432246,-300.0,0.00010684,2]
[400488791,1767659432255,-300.0,0.00010684,2]
[400488793,1767659432264,-300.0,0.00010684,2]
[400488795,1767659432273,-300.0,0.00010684,2]
[400488797,1767659432282,-600.0,0.00010684,2]
[400488799,1767659432291,-500.0,0.00010848,2]
[400488800,1767659432302,-513.56,0.00011,2]
[400488802,1767659432312,-348.86,0.00011017,2]
[400488804,1767659432322,-420.0,0.00011026,2]
[400488806,1767659432331,-1680.0,0.00011028,2]
[400488808,1767659432340,-1680.0,0.00011028,2]
[400488810,1767659432350,-1805.47946285,0.00011042,2]
[400488812,1767659432359,-500.0,0.00011122,2]
[400488813,1767659432368,-14.2214728,0.00011142,2]
[400488816,1767659432385,-485.7785272,0.00011142,2]
[400488818,1767659432394,-500.0,0.00011142,2]
[400488820,1767659432404,-500.0,0.00011142,2]
[400488821,1767659432413,-500.0,0.00011142,2]
[400488823,1767659432422,-412.96462577,0.00011142,2]
[400488890,1767659437808,-500.0,0.00010573,2]
[400488891,1767659437818,-500.0,0.00010847,2]
[400488892,1767659437828,-87.03537423,0.00011142,2]
[400488893,1767659437838,-160.36297885,0.00011142,2]
[400488894,1767659437847,-500.0,0.00011142,2]
[400488895,1767659437856,-500.0,0.00011142,2]
[400488896,1767659437865,-500.0,0.00011142,2]
[400488897,1767659437876,-175.11319424,0.00011142,2]
[400488898,1767659437887,-150.71912448,0.00011142,2]
[400488899,1767659437896,-259.581475,0.00011142,2]
[400488901,1767659437905,-500.0,0.00011142,2]
[400488902,1767659437914,-500.0,0.00011279,2]
[400488904,1767659437924,-500.0,0.00011279,2]
[400488905,1767659437934,-500.0,0.00011279,2]
[400488907,1767659437943,-500.0,0.00011279,2]
[400488909,1767659437952,-500.0,0.00011279,2]
[400488911,1767659437960,-500.0,0.00011279,2]
[400488913,1767659437969,-500.0,0.00011279,2]
[400488915,1767659437978,-500.0,0.00011279,2]
[400488917,1767659437987,-167.70919048,0.00011279,2]
[400488919,1767659437996,-256.92792321,0.00011279,2]
[400488921,1767659438005,-500.0,0.00011279,2]
[400488923,1767659438015,-263.99915243,0.00011306,2]
[400488925,1767659438029,-124.85513347,0.00011306,2]
[400488927,1767659438039,-301.90558036,0.00011342,2]
[400488929,1767659438050,-387.63,0.00011397,2]
[400488931,1767659438059,-513.56,0.000114,2]
[400488933,1767659438069,-500.0,0.00011416,2]
[400488935,1767659438078,-500.0,0.00011416,2]
[400488937,1767659438088,-200.0,0.00011416,2]
[400488939,1767659438097,-500.0,0.00011416,2]
[400488941,1767659438106,-413.92678941,0.00011416,2]
[400488943,1767659438115,-200.0,0.00011416,2]
[400488945,1767659438125,-255.67731607,0.00011416,2]
[400488947,1767659438135,-500.0,0.00011416,2]
[400488949,1767659438145,-191.48518069,0.00011416,2]
[400488951,1767659438157,-308.51481931,0.00011416,2]
[400488953,1767659438167,-461.89087781,0.00011416,2]
[400488955,1767659438177,-500.0,0.00011416,2]
[400488957,1767659438187,-2129.35578247,0.00011475,2]
[400488959,1767659438196,-223.13083017,0.00011553,2]
[400488961,1767659438206,-500.0,0.00011553,2]
[400488964,1767659438216,-500.0,0.00011553,2]
[400488965,1767659438226,-500.0,0.00011553,2]
[400488967,1767659438235,-500.0,0.00011553,2]
[400488970,1767659438244,-164.22007656,0.00011553,2]
[400488972,1767659438254,-500.0,0.00011553,2]
[400488973,1767659438263,-250.0,0.00011598,2]
[400488975,1767659438272,-1805.47946284,0.00011681,2]
[400488977,1767659438282,-500.0,0.0001169,2]
[400488979,1767659438291,-500.0,0.0001169,2]
[400488981,1767659438300,-500.0,0.0001169,2]
[400488983,1767659438310,-301.43282631,0.0001169,2]
[400488985,1767659438319,-500.0,0.0001169,2]
[400488987,1767659438329,-720.0,0.00011753,2]
[400488989,1767659438339,-513.56,0.000118,2]
[400488991,1767659438348,-500.0,0.00011827,2]
[400488993,1767659438358,-500.0,0.00011827,2]
[400488996,1767659438367,-500.0,0.00011827,2]
[400488998,1767659438378,-500.0,0.00011827,2]
[400489000,1767659438388,-353.92857875,0.00011964,2]
[400489002,1767659438398,-500.0,0.00011964,2]
[400489004,1767659438408,-500.0,0.00011964,2]
[400489006,1767659438418,-500.0,0.00011964,2]
[400489008,1767659438428,-1091.85681796,0.00012091,2]
[400489010,1767659438438,-500.0,0.00012091,2]
[400489012,1767659438448,-500.0,0.00012091,2]
[400489014,1767659438458,-500.0,0.00012091,2]
[400489016,1767659438466,-500.0,0.00012091,2]
[400489033,1767659438620,-500.0,0.00012091,2]
[400489035,1767659438630,-151.0,0.00012091,2]
[400489037,1767659438641,-500.0,0.00012091,2]
[400489039,1767659438651,-500.0,0.00012091,2]
[400489041,1767659438661,-500.0,0.00012091,2]
[400489043,1767659438670,-250.0,0.00012091,2]
[400489045,1767659438679,-151.0,0.00012091,2]
[400489047,1767659438688,-30000.0,0.00012091,2]
[400489049,1767659438703,-151.0,0.00012091,2]
[400489051,1767659438713,-151.0,0.00012091,2]
[400489053,1767659438722,-151.0,0.00012091,2]
[400489055,1767659438732,-2398.4119403,0.00012091,2]
[400489057,1767659438742,-151.0,0.00012091,2]
[400489059,1767659438754,-285.57793267,0.00012091,2]
[400489061,1767659438764,-151.0,0.00012091,2]
[400489062,1767659438773,-297.97794429,0.00012091,2]
[400489064,1767659438783,-500.0,0.00012101,2]
[400489066,1767659438796,-500.0,0.00012101,2]
[400489068,1767659438805,-500.0,0.00012101,2]
[400489070,1767659438815,-587.0,0.00012128,2]
[400489073,1767659438824,-480.0,0.0001213,2]
[400489075,1767659438835,-2351.0,0.00012131,2]
[400489077,1767659438845,-500.0,0.00012238,2]
[400489079,1767659438854,-500.0,0.00012238,2]
[400489081,1767659438863,-500.0,0.00012238,2]
[400489082,1767659438872,-513.56,0.000123,2]
[400489085,1767659438883,-1805.47946284,0.0001232,2]
[400489086,1767659438892,-749.09,0.00012329,2]
[400489088,1767659438902,-624.24,0.00012329,2]
[400489090,1767659438911,-520.2,0.00012329,2]
[400489092,1767659438920,-433.5,0.00012329,2]
[400489094,1767659438930,-361.25,0.00012329,2]
[400489096,1767659438940,-301.04,0.00012329,2]
[400489098,1767659438949,-250.87,0.00012329,2]
[400489100,1767659438958,-209.06,0.00012329,2]
[400489102,1767659438968,-174.21,0.00012329,2]
[400489104,1767659438977,-871.1,0.00012329,2]
[400489106,1767659438988,-500.0,0.00012375,2]
[400489108,1767659438997,-500.0,0.00012375,2]
[400489110,1767659439006,-500.0,0.00012375,2]
[400489112,1767659439016,-391.17925611,0.00012512,2]
[400489114,1767659439026,-500.0,0.00012512,2]
[400489116,1767659439035,-31110.0,0.00012639,2]
[400489118,1767659439045,-2487.15318209,0.00012639,2]
[400489120,1767659439055,-500.0,0.00012649,2]
[400489122,1767659439066,-513.56,0.000127,2]
[400489124,1767659439075,-500.0,0.00012786,2]
[400489126,1767659439085,-497749.79905569,0.00012813,2]